Department Family,Date Paid,Expense Type,Expense Area,Supplier,Transaction Number,Amount,Vat Inclusive
Crown Prosecution Service ,04/07/22,Crown Court Graduated Fee Scheme,South East Complex Casework Unit,6 Kings Bench Walk- Chambers of D Fisher & D Perry,101980 AMG,"30,091.26",Y
Crown Prosecution Service ,04/07/22,Crown Court Graduated Fee Scheme,North West Complex Casework Unit,Harrington Street Chambers,1135045/ALT,"32,942.40",Y
Crown Prosecution Service ,04/07/22,Crown Court Graduated Fee Scheme,Counter Terrorism Unit: Internal Funding,Red Lion Chambers (18 RLC),162377BJ,"46,827.42",Y
Crown Prosecution Service ,04/07/22,Crown Court Graduated Fee Scheme,East of England Crown Court,Red Lion Chambers (18 RLC),163829CPXtrial,"78,296.28",Y
Crown Prosecution Service ,04/07/22,Crown Court Graduated Fee Scheme,East of England Crown Court,Red Lion Chambers (18 RLC),163829RKYtrialfee,"35,949.94",Y
Crown Prosecution Service ,04/07/22,Crown Court Graduated Fee Scheme,North West Complex Casework Unit,Park Square Barristers (No 6 and Sovereign merged),457199/RWQC/TRL,"57,499.80",Y
Crown Prosecution Service ,04/07/22,Apprenticeship Levy payments Permanent,Other Corporate Programme Payments,HM Revenue and Customs,948PB000021422303,"113,750.34",
Crown Prosecution Service ,04/07/22,Crown Court Graduated Fee Scheme,London North Complex Casework Unit,QEB Hollis Whiteman Chambers,JE 110113,"31,065.00",Y
Crown Prosecution Service ,04/07/22,Crown Court Graduated Fee Scheme,London North Complex Casework Unit,QEB Hollis Whiteman Chambers,NC 111555,"37,484.52",Y
Crown Prosecution Service ,05/07/22,Crown Court Graduated Fee Scheme,London North Complex Casework Unit,5 King's Bench Walk,JHQC176799,"36,023.40",Y
Crown Prosecution Service ,06/07/22,Crown Court Graduated Fee Scheme,North East Complex Casework Unit,Fountain Chambers,118788 Op Rex PGM,"41,609.10",Y
Crown Prosecution Service ,06/07/22,Crown Court Graduated Fee Scheme,London North Crown Court Unit,2 Kings Bench Walk London,277216-MJS-OFB1,"28,746.60",Y
Crown Prosecution Service ,07/07/22,Crown Court Graduated Fee Scheme,Special Crime Unit York,St Pauls Chambers Leeds,240665 JFHa,"51,021.58",Y
Crown Prosecution Service ,07/07/22,Crown Court Graduated Fee Scheme,Special Crime Unit York,Lincoln House Chambers,240665 LAW,"29,797.47",Y
Crown Prosecution Service ,07/07/22,Crown Court Graduated Fee Scheme,North West Crown Court Hub,Exchange Chambers Leeds ,591528-2/HWI,"28,600.80",Y
Crown Prosecution Service ,08/07/22,Crown Court Graduated Fee Scheme,North West Complex Casework Unit,New Park Court Chambers Leeds,363680/JG,"44,881.44",Y
Crown Prosecution Service ,08/07/22,Crown Court Graduated Fee Scheme,North West Complex Casework Unit,New Park Court Chambers Leeds,363680/RH,"29,776.80",Y
Crown Prosecution Service ,08/07/22,Salaries Secondments Admin,Court Business Unit,Mayor's Office for Policing and Crime,9411039118,"39,244.80",Y
Crown Prosecution Service ,11/07/22,Crown Court Graduated Fee Scheme,London North Complex Casework Unit,23 Essex Street Chambers,181551-GSM,"55,297.56",Y
Crown Prosecution Service ,11/07/22,Crown Court Graduated Fee Scheme,London South RASSO,23 Essex Street Chambers,194329-HUS-1,"29,940.00",Y
Crown Prosecution Service ,11/07/22,Crown Court Graduated Fee Scheme,Mersey Cheshire Complex Casework Unit,Lincoln House Chambers,251395 AL,"26,655.90",Y
Crown Prosecution Service ,11/07/22,IT services,Other IT costs,Lumen Technologies UK Ltd,300106426/1094590,"45,600.97",Y
Crown Prosecution Service ,11/07/22,Crown Court Graduated Fee Scheme,Cymru Wales Complex Casework Unit,Linenhall Chambers,305873 SPR,"29,367.24",Y
Crown Prosecution Service ,11/07/22,Crown Court Graduated Fee Scheme,West Midlands RASSO Unit,St Johns Buildings - 24a - 28 St John Street,hanko 1124173,"29,937.48",Y
Crown Prosecution Service ,11/07/22,IT services,DTS Programme Project Cost,eSynergy Solutions Ltd,INV00000652,"82,050.00",Y
Crown Prosecution Service ,11/07/22,IT services,DTS Programme Project Cost,eSynergy Solutions Ltd,INV00000653,"46,860.00",Y
Crown Prosecution Service ,11/07/22,IT non capital equipment and consumables,DTS Programme Project Cost,ACS Systems UK Limited Northampton,INV417353,"1,023,830.40",Y
Crown Prosecution Service ,12/07/22,New Works: non capital,Estate and FM: Programme,Government Property Agency London,00000001/17107,"63,565.00",
Crown Prosecution Service ,12/07/22,Right of use asset clearing Buildings,Balance Sheet,Government Property Agency London,00000001/19484,"62,265.03",Y
Crown Prosecution Service ,12/07/22,IT services,PSN Connectivity Contract,Lumen Technologies UK Ltd,300147329/1096225,"38,194.83",
Crown Prosecution Service ,12/07/22,IT services,PSN Connectivity Contract,Lumen Technologies UK Ltd,300147407/1096282,"76,022.14",
Crown Prosecution Service ,12/07/22,Crown Court Graduated Fee Scheme,Mersey Cheshire Complex Casework Unit,Exchange Chambers - Manchester,597581 DTE,"40,126.20",Y
Crown Prosecution Service ,12/07/22,Intangibles asset purchase clearing CMS,DTS ICT Capital Expenditure,CGI IT UK Ltd,GB014085358,"100,569.00",
Crown Prosecution Service ,12/07/22,Intangibles asset purchase clearing CMS,DTS ICT Capital Expenditure,CGI IT UK Ltd,GB014085359,"915,043.00",
Crown Prosecution Service ,12/07/22,Recoverable VAT control,Balance Sheet,CGI IT UK Ltd,GB014085359,"183,008.60",Y
Crown Prosecution Service ,13/07/22,Crown Court Graduated Fee Scheme,London North Crown Court Unit,Foundry Chambers (9-12 Bell Yard),193452/ND,"26,471.40",Y
Crown Prosecution Service ,13/07/22,Conference Organisation,DID Central Leadership Team,Calder Communications Ltd Leeds,449622,"54,852.96",Y
Crown Prosecution Service ,13/07/22,Crown Court Graduated Fee Scheme,West Midlands Complex Casework Unit,St Philips Chambers,682091 JDU,"26,599.44",Y
Crown Prosecution Service ,13/07/22,Crown Court Graduated Fee Scheme,London South Complex Casework Unit,5 King's Bench Walk,WD 173943,"25,069.80",Y
Crown Prosecution Service ,14/07/22,Advice/PreSending Very High Cost Cases Full Scheme,Mersey Cheshire Complex Casework Unit,Harrington Street Chambers,1096572/NJ,"25,800.84",Y
Crown Prosecution Service ,14/07/22,Crown Court Graduated Fee Scheme,North West Crown Court Hub,Exchange Chambers - Manchester,591528 AS.,"39,019.80",Y
Crown Prosecution Service ,14/07/22,IT non capital software licences,Legal Reference and ICT Licenses,Outsystems LTD London,INVGB202200185,"777,120.00",Y
Crown Prosecution Service ,15/07/22,Crown Court Graduated Fee Scheme,West Midlands Complex Casework Unit,6 Kings Bench Walk- Chambers of D Fisher & D Perry,1012241 DAR,"90,604.44",Y
Crown Prosecution Service ,15/07/22,Crown Court Graduated Fee Scheme,West Midlands Complex Casework Unit,6 Kings Bench Walk- Chambers of D Fisher & D Perry,102241 SR,"45,855.84",Y
Crown Prosecution Service ,15/07/22,Crown Court Graduated Fee Scheme,Thames and Chiltern Complex Casework Unit,23 Essex Street Chambers,191692-LG-TRIAL,"35,930.82",Y
Crown Prosecution Service ,15/07/22,Crown Court Graduated Fee Scheme,Yorkshire and Humberside Complex Casework Unit,Broadway House Chambers,213294-1/SW,"62,404.32",Y
Crown Prosecution Service ,15/07/22,Crown Court Graduated Fee Scheme,Yorkshire and Humberside Complex Casework Unit,Broadway House Chambers,213294-3/AL,"32,050.44",Y
Crown Prosecution Service ,15/07/22,IT non capital software licences,Legal Reference and ICT Licenses,Trustmarque Solutions Ltd,2344874,"52,252.51",
Crown Prosecution Service ,15/07/22,Crown Court Graduated Fee Scheme,North East Complex Casework Unit,Park Square Barristers (No 6 and Sovereign merged),506672/MMKQC/1,"79,527.78",Y
Crown Prosecution Service ,15/07/22,Crown Court Graduated Fee Scheme,North West Complex Casework Unit,Exchange Chambers - Manchester,587466 AB,"30,556.20",Y
Crown Prosecution Service ,15/07/22,Crown Court Graduated Fee Scheme,London North Complex Casework Unit,5 King's Bench Walk,AOQC171173,"113,712.96",Y
Crown Prosecution Service ,15/07/22,Crown Court Graduated Fee Scheme,West Midlands Complex Casework Unit,QEB Hollis Whiteman Chambers,EBQC 110870,"33,756.60",Y
Crown Prosecution Service ,15/07/22,Other publicity and media costs,PF Operational HR Costs,Law Society,SIN0011615,"72,000.00",
Crown Prosecution Service ,18/07/22,General Management Consultancy Advice,DTS Programme Project Cost,PA Consulting Services Limited,0000017739,"169,896.64",Y
Crown Prosecution Service ,18/07/22,IT services,ICT Network Services,Vodafone Ltd formerly Cable and Wireless Milton Keynes,4021422,"74,848.84",Y
Crown Prosecution Service ,18/07/22,IT services,ICT Network Services,Vodafone Ltd formerly Cable and Wireless Milton Keynes,4021424,"30,960.50",
Crown Prosecution Service ,18/07/22,IT services,DTS Programme Project Cost,Vodafone Ltd formerly Cable and Wireless Milton Keynes,4021432,"110,058.10",Y
Crown Prosecution Service ,18/07/22,Short term leases from 2 to 12 months: IT and Equipment,Print Contract,Xerox (UK) Ltd,900220805,"47,877.69",
Crown Prosecution Service ,18/07/22,IT services,DTS Programme Project Cost,WIPRO Holdings London,90120933,"50,830.80",Y
Crown Prosecution Service ,18/07/22,IT services,DTS Programme Project Cost,WIPRO Holdings London,90120936,"43,309.80",Y
Crown Prosecution Service ,18/07/22,Other managed/contractor services,DTS Programme Project Cost,Equal Experts London,INV-10660,"119,772.00",Y
Crown Prosecution Service ,18/07/22,IT services,DTS Programme Project Cost,eSynergy Solutions Ltd,INV00000684,"222,784.06",Y
Crown Prosecution Service ,18/07/22,Crown Court Graduated Fee Scheme,London North Crown Court Unit,5 King's Bench Walk,JB170044.T5,"28,925.40",Y
Crown Prosecution Service ,18/07/22,Crown Court Graduated Fee Scheme,Special Crime Unit London,5 King's Bench Walk,MHQC 165285,"25,207.24",Y
Crown Prosecution Service ,19/07/22,Crown Court Very High Cost Cases Full Scheme,RWD North Unit,Foundry Chambers (9-12 Bell Yard),196008/JWA,"46,119.00",Y
Crown Prosecution Service ,19/07/22,Crown Court Graduated Fee Scheme,Mersey Cheshire Complex Casework Unit,Exchange Chambers - Manchester,609640 DTE,"28,399.68",Y
Crown Prosecution Service ,19/07/22,Crown Court Graduated Fee Scheme,West Midlands Crown Court Unit,QEB Hollis Whiteman Chambers,EBQC 110285 A,"51,328.16",Y
Crown Prosecution Service ,19/07/22,Crown Court Graduated Fee Scheme,West Midlands Crown Court Unit,QEB Hollis Whiteman Chambers,PWA 110285 A,"28,982.84",Y
Crown Prosecution Service ,19/07/22,Advice/PreSending Very High Cost Cases Full Scheme,RWD North Unit,Citadel Chambers,TH/683966/YULAN 13,"25,597.00",Y
Crown Prosecution Service ,20/07/22,Crown Court Graduated Fee Scheme,London North Complex Casework Unit,6 Kings Bench Walk- Chambers of D Fisher & D Perry,102817 GP,"42,525.06",Y
Crown Prosecution Service ,20/07/22,Crown Court Graduated Fee Scheme,Thames Chiltern Crown Court Unit,Red Lion Chambers (18 RLC),154993KBtrialfees,"30,713.32",Y
Crown Prosecution Service ,20/07/22,Crown Court Graduated Fee Scheme,South West RASSO Unit Crown Court,Colleton Chambers,50616RD(3),"35,209.14",Y
Crown Prosecution Service ,20/07/22,Crown Court Graduated Fee Scheme,Mersey Cheshire Complex Casework Unit,5 King's Bench Walk,CNQC176957,"28,427.70",Y
Crown Prosecution Service ,20/07/22,IT services,Service Desk Contract,CGI IT UK Ltd,GB014085822,"91,844.13",
Crown Prosecution Service ,20/07/22,Crown Court Very High Cost Cases Full Scheme,London South Complex Casework Unit,9 Gough Chambers London,JCT371773A,"30,576.00",Y
Crown Prosecution Service ,20/07/22,Crown Court Graduated Fee Scheme,London North Complex Casework Unit,3 Raymond Buildings,WEJ/250940,"45,724.20",Y
Crown Prosecution Service ,21/07/22,Crown Court Graduated Fee Scheme,North West Crown Court Hub,18 St John Street - Chambers of Peter Birkett QC,289877-1/MAB,"27,958.44",Y
Crown Prosecution Service ,22/07/22,Crown Court Graduated Fee Scheme,London North Crown Court Unit,Furnival Chambers,166243 TSIL Muse,"33,458.76",Y
Crown Prosecution Service ,22/07/22,Crown Court Graduated Fee Scheme,London South Complex Casework Unit,QEB Hollis Whiteman Chambers,RS 107538,"33,676.20",Y
Crown Prosecution Service ,25/07/22,FCO platform charges excluding leases,Intl Internal Funding,"Foreign, Commonwealth and Development Office",1145831,"48,763.25",
Crown Prosecution Service ,25/07/22,Crown Court Graduated Fee Scheme,East Midlands Complex Casework Unit,1 High Pavement Chambers,270128 Amini AP,"36,371.10",Y
Crown Prosecution Service ,25/07/22,Crown Court Graduated Fee Scheme,Yorks and Humbs CC Legal,New Park Court Chambers Leeds,360660-2/STKQC,"36,563.76",Y
Crown Prosecution Service ,25/07/22,Recoverable VAT control,Balance Sheet,CGI IT UK Ltd,GB014086189,"204,957.14",Y
Crown Prosecution Service ,25/07/22,IT services,Apps and Hosting Contract,CGI IT UK Ltd,GB014086189,"1,024,785.69",
Crown Prosecution Service ,25/07/22,Salary sacrifice suspense,Balance Sheet,Edenred,INV26202738,"26,782.78",
Crown Prosecution Service ,26/07/22,Property management fees,Estate and FM: Programme,Government Property Agency London,00000001/18890,"25,871.23",Y
Crown Prosecution Service ,26/07/22,Landlord service charge,Estate and FM: Administration,Government Property Agency London,00000001/18890,"289,610.72",
Crown Prosecution Service ,26/07/22,National non domestic rates,Estate and FM: Programme,Government Property Agency London,00000001/18890,"411,729.59",
Crown Prosecution Service ,26/07/22,National non domestic rates,Estate and FM: Administration,Government Property Agency London,00000001/18890,"84,330.16",
Crown Prosecution Service ,26/07/22,Landlord service charge,Estate and FM: Programme,Government Property Agency London,00000001/18890,"1,413,981.78",
Crown Prosecution Service ,26/07/22,Lease liability non current lease payments,Balance Sheet,Government Property Agency London,00000001/18890,"1,201,346.27",
Crown Prosecution Service ,26/07/22,IT services,PSN Services Contract,Lumen Technologies UK Ltd,300148107/1097081,"117,639.82",
Crown Prosecution Service ,26/07/22,Data Communications,PSN Services Contract,Lumen Technologies UK Ltd,300546233/1097725,"31,898.25",Y
Crown Prosecution Service ,27/07/22,General Management Consultancy Advice,DTS Programme Project Cost,PA Consulting Services Limited,00000181060-1,"191,111.27",Y
Crown Prosecution Service ,27/07/22,Crown Court Graduated Fee Scheme,East Midlands Crown Court Section,36 Bedford Row,210371/AKE,"33,513.60",Y
Crown Prosecution Service ,27/07/22,Crown Court Graduated Fee Scheme,East Midlands Crown Court Section,36 Bedford Row,210371/JJH3,"49,821.00",Y
Crown Prosecution Service ,27/07/22,Crown Court Graduated Fee Scheme,West Midlands Complex Casework Unit,No 5 Fountain Court Chambers,797076/MBK/COOPER,"25,507.80",Y
Crown Prosecution Service ,27/07/22,Crown Court Graduated Fee Scheme,London North Complex Casework Unit,5 King's Bench Walk,AOQC172859,"53,007.00",Y
Crown Prosecution Service ,28/07/22,Transcriptions and Translation,Other Corporate Programme Payments,Mendip Media Group Ltd Tiverton,0000000194,"30,285.00",
Crown Prosecution Service ,28/07/22,Crown Court Graduated Fee Scheme,London North Complex Casework Unit,6 Kings Bench Walk- Chambers of D Fisher & D Perry,100960 PRA,"40,922.40",Y
Crown Prosecution Service ,28/07/22,Crown Court Graduated Fee Scheme,West Midlands Complex Casework Unit,Red Lion Chambers (18 RLC),147304JBE,"37,258.20",Y
Crown Prosecution Service ,28/07/22,External legal advice - HR casework,PF Litigation,Government Legal Department,514698,"32,010.00",Y
Crown Prosecution Service ,28/07/22,Transcriptions and Translation,Other Corporate Programme Payments,AVR Transcription Ltd Bolton,JUN22-CPS-35807,"43,650.47",
Crown Prosecution Service ,29/07/22,Crown Court Graduated Fee Scheme,North East Crown Court Unit,Trinity Chambers,0000006805,"30,270.72",Y
Crown Prosecution Service ,29/07/22,Crown Court Graduated Fee Scheme,North East Crown Court Unit,6 Kings Bench Walk- Chambers of D Fisher & D Perry,102794  JH,"66,466.88",Y
Crown Prosecution Service ,29/07/22,Crown Court Graduated Fee Scheme,South East Complex Casework Unit,23 Essex Street Chambers,191362-SHA-TRIAL,"28,425.72",Y
Crown Prosecution Service ,29/07/22,Crown Court Graduated Fee Scheme,Yorks and Humbs CC Legal,Broadway House Chambers,218226-1/MDC,"33,255.90",Y
Crown Prosecution Service ,29/07/22,Crown Court Graduated Fee Scheme,RWD North Unit,Lincoln House Chambers,242920 AL C,"33,073.08",Y
Crown Prosecution Service ,29/07/22,Crown Court Graduated Fee Scheme,Yorks and Humbs CC Legal,Park Square Barristers (No 6 and Sovereign merged),506469/MMKQC/TRL,"49,485.00",Y
Crown Prosecution Service ,29/07/22,Crown Court Graduated Fee Scheme,Yorks and Humbs CC Legal,Park Square Barristers (No 6 and Sovereign merged),509606/PMQC/TRL,"34,341.00",Y
Crown Prosecution Service ,29/07/22,Crown Court Graduated Fee Scheme,North West Crown Court Hub,Exchange Chambers - Manchester,552142 AB,"29,599.80",Y
Crown Prosecution Service ,29/07/22,Crown Court Graduated Fee Scheme,Counter Terrorism Unit: Internal Funding,QEB Hollis Whiteman Chambers,AWH 111137,"34,101.84",Y
Crown Prosecution Service ,29/07/22,Crown Court Graduated Fee Scheme,London North Complex Casework Unit,5 King's Bench Walk,BHO172859,"26,500.80",Y
Crown Prosecution Service ,29/07/22,IT non capital software licences,Legal Reference and ICT Licenses,Specialist Computer Centres Plc,OP/ N193052,"168,081.84",Y
Crown Prosecution Service ,29/07/22,Crown Court Very High Cost Cases Full Scheme,Special Crime Unit London,QEB Hollis Whiteman Chambers,PEQC 111420 B,"28,830.00",Y
